{"text_format":"1","workbook":"xlsx","n_sheets":6,"sheets":["例１","例２","【入力用】食事確認表","【入力用】パーティ・野炊","マスター①","マスター②"],"not_rendered":{"charts":0,"images":0,"macros":1,"external_links":0,"defined_names":49,"comments":2,"pivot_tables":0},"unopened":[],"bounds":{"document_bytes":16777216,"sheet_cells":100000,"rows_first":2000,"rows_last":500,"rows_between":2000,"halvings":0,"cell_chars":16384,"cell_head_chars":4096},"cells_cut":0,"cells_raw":0,"read":"whole","date_system":"1900"}

{"sheet":"例１","index":0,"n_rows":76,"n_cols":42,"rows_kept":76,"cut":false,"hidden":false,"merged":[[73,0,79,2],[73,13,73,31],[73,41,74,47],[74,13,74,31],[72,0,72,2],[72,3,74,5],[72,6,74,9],[72,10,74,12],[72,13,72,31],[75,3,79,5],[75,6,79,9],[75,10,79,12],[75,13,75,31],[75,32,75,40],[75,41,77,47],[76,13,76,31],[76,32,76,40],[77,13,77,31],[77,32,77,40],[78,13,78,31],[78,32,78,40],[78,41,79,47],[79,13,79,31],[72,32,72,40],[67,3,71,5],[67,6,71,9],[67,10,71,12],[67,13,67,31],[67,32,67,40],[67,41,68,47],[68,13,68,31],[68,32,68,40],[69,13,69,31],[69,32,69,40],[73,32,73,40],[74,32,74,40],[79,32,79,40],[72,41,72,47],[65,13,65,31],[65,32,65,40],[65,41,66,47],[66,13,66,31],[66,32,66,40],[69,41,70,47],[70,13,70,31],[70,32,70,40],[71,13,71,31],[71,32,71,40],[71,41,71,47],[49,3,53,5],[49,6,53,9],[49,10,53,12],[49,13,49,31],[49,32,49,40],[59,41,59,47],[60,0,71,2],[60,13,60,31],[60,41,61,47],[61,13,61,31],[59,0,59,2],[59,3,61,5],[59,6,61,9],[59,10,61,12],[59,13,59,31],[62,3,66,5],[62,6,66,9],[62,10,66,12],[62,13,62,31],[62,32,62,40],[62,41,64,47],[63,13,63,31],[63,32,63,40],[64,13,64,31],[54,3,58,5],[54,6,58,9],[54,10,58,12],[54,13,54,31],[54,32,54,40],[54,41,55,47],[55,13,55,31],[55,32,55,40],[56,13,56,31],[56,32,56,40],[52,41,53,47],[53,13,53,31],[53,32,53,40],[56,41,57,47],[57,13,57,31],[57,32,57,40],[58,13,58,31],[58,32,58,40],[58,41,58,47],[44,41,44,47],[46,0,46,2],[46,3,48,5],[46,6,48,9],[46,10,48,12],[46,13,46,31],[44,0,44,1],[44,2,44,6],[44,7,44,8],[44,9,44,14],[44,15,44,18],[44,19,44,37],[46,41,46,47],[47,0,58,2],[47,13,47,31],[47,41,48,47],[48,13,48,31],[49,41,51,47],[50,13,50,31],[50,32,50,40],[51,13,51,31],[51,32,51,40],[52,13,52,31],[52,32,52,40],[40,41,41,47],[41,13,41,31],[41,32,41,40],[42,13,42,31],[42,32,42,40],[42,41,42,47],[38,3,42,5],[38,6,42,9],[38,10,42,12],[38,13,38,31],[38,32,38,40],[38,41,39,47],[39,13,39,31],[39,32,39,40],[40,13,40,31],[40,32,40,40],[30,41,30,47],[31,0,42,2],[31,13,31,31],[31,41,32,47],[32,13,32,31],[30,0,30,2],[30,3,32,5],[30,6,32,9],[30,10,32,12],[30,13,30,31],[33,3,37,5],[33,6,37,9],[33,10,37,12],[33,13,33,31],[33,32,33,40],[33,41,35,47],[34,13,34,31],[34,32,34,40],[35,13,35,31],[35,32,35,40],[36,13,36,31],[36,32,36,40],[36,41,37,47],[37,13,37,31],[25,6,29,9],[25,10,29,12],[25,13,25,31],[25,32,25,40],[25,41,26,47],[26,13,26,31],[26,32,26,40],[27,13,27,31],[27,32,27,40],[20,41,22,47],[21,0,29,2],[21,13,21,31],[21,32,21,40],[22,13,22,31],[22,32,22,40],[23,13,23,31],[23,32,23,40],[23,41,24,47],[24,13,24,31],[20,0,20,2],[20,3,24,5],[20,6,24,9],[20,10,24,12],[20,13,20,31],[20,32,20,40],[24,32,24,40],[27,41,28,47],[28,13,28,31],[28,32,28,40],[29,13,29,31],[29,32,29,40],[29,41,29,47],[25,3,29,5],[17,0,17,1],[17,2,17,47],[19,0,19,5],[19,6,19,9],[19,10,19,12],[19,13,19,31],[19,32,19,40],[19,41,19,47],[14,0,14,1],[14,2,14,47],[15,0,15,1],[15,2,15,47],[16,0,16,1],[16,2,16,47],[11,0,11,1],[11,2,11,47],[12,0,12,1],[12,2,12,47],[13,0,13,1],[13,2,13,47],[0,38,0,40],[0,41,0,47],[2,0,3,17],[5,0,9,5],[5,6,5,25],[5,26,9,47],[6,6,6,25],[7,6,9,17],[0,0,0,1],[0,2,0,6],[0,7,0,8],[0,9,0,14],[0,15,0,18],[0,19,0,37],[64,32,64,40],[30,32,30,40],[31,32,31,40],[32,32,32,40],[46,32,46,40],[47,32,47,40],[48,32,48,40],[59,32,59,40],[60,32,60,40],[61,32,61,40],[37,32,37,40],[44,38,44,40]]}
["予約\n番号",null,12345,null,null,null,null,"団体\n区分",null,"学校教育団体",null,null,null,null,null,"ご予約名",null,null,null,null,null,null,null,null,null,null,null,null,null,null,null,null,null,null,null,null,null,null,"ご利用\n開始日"]
[]
["　⑥食事確認表"]
[]
[]
["【重要事項】　",null,null,null,null,null,"食物アレルギーの方はいらっしゃいますか？",null,null,null,null,null,null,null,null,null,null,null,null,null,null,null,null,null,null,null,"別紙の「アレルギー対応申込書」に\n氏名、年齢、アレルギーの詳細を\nご記入ください。"]
[null,null,null,null,null,null,"＊どちらかを必ずご選択ください。"]
[null,null,null,null,null,null,"ｱﾚﾙｷﾞｰあり"]
[]
[]
[]
["○",null,"色掛け部分（プルダウンおよび入力欄）をご選択いただきメニュー、数量、開始時間をご記入下さい。"]
["○",null,"パーティーメニュー、野外炊爨をご希望の場合、別紙「パーティ・野外炊爨」にご記入下さい。"]
["○",null,"上記団体区分をご選択いただかないと、各プルダウンが対応しません。必ず団体区分をご選択ください。"]
["○",null,"団体食のお申込みは、ご利用人数が10名様以上の団体のみお申込みができます。"]
[null,null,"また、団体食AとBなどのように２種類以上の団体食は組み合わせ出来ません。"]
["○",null,"”予約せず食べる” をご選択の場合、メニューや数量の選択は必要ありません。当日現金精算となります。"]
["○",null,"最長4泊5日分までご入力ができます。宿泊数に応じてご入力ください。"]
[]
[null,null,null,null,null,null,"要・不要",null,null,null,"時間区分",null,null,"メニューをお選びください",null,null,null,null,null,null,null,null,null,null,null,null,null,null,null,null,null,null,"数量をご入力ください",null,null,null,null,null,null,null,null,"開始時間"]
["1日目",null,null,"昼",null,null,"予約して食べる",null,null,null,"昼食",null,null,"日替定食",null,null,null,null,null,null,null,null,null,null,null,null,null,null,null,null,null,null,17,null,null,null,null,null,null,null,null,"提供可能時間\n（11:30～13:30）\n※ご予約がない方は\n 12:00～となります\nお 弁 当　可能時間\n（9:00～12:00）"]
[{"$f":"AP1","v":"00:00:00"}]
[]
[null,null,null,null,null,null,null,null,null,null,null,null,null,null,null,null,null,null,null,null,null,null,null,null,null,null,null,null,null,null,null,null,null,null,null,null,null,null,null,null,null,"12:30:00"]
[]
[null,null,null,"夕",null,null,null,null,null,null,"夕食",null,null,null,null,null,null,null,null,null,null,null,null,null,null,null,null,null,null,null,null,null,null,null,null,null,null,null,null,null,null,"提供可能時間\n （17:00～20:00）"]
[]
[]
[]
[null,null,null,null,null,null,null,null,null,null,null,null,null,null,null,null,null,null,null,null,null,null,null,null,null,null,null,null,null,null,null,null,null,null,null,null,null,null,null,null,null,"（20:30　退席）"]
["2日目",null,null,"朝",null,null,null,null,null,null,"朝食",null,null,null,null,null,null,null,null,null,null,null,null,null,null,null,null,null,null,null,null,null,null,null,null,null,null,null,null,null,null,"提供可能時間\n（7:30～8:30）"]
[{"$f":"A22+1","v":"1900-01-01"}]
[]
[null,null,null,"昼",null,null,null,null,null,null,"昼食",null,null,null,null,null,null,null,null,null,null,null,null,null,null,null,null,null,null,null,null,null,null,null,null,null,null,null,null,null,null,"提供可能時間\n（11:30～13:30）\n※ご予約がない方は\n 12:00～となります\nお 弁 当　可能時間\n（9:00～12:00）"]
[]
[]
[]
[]
[null,null,null,"夕",null,null,null,null,null,null,"夕食",null,null,null,null,null,null,null,null,null,null,null,null,null,null,null,null,null,null,null,null,null,null,null,null,null,null,null,null,null,null,"提供可能時間\n （17:00～20:00）"]
[]
[]
[]
[null,null,null,null,null,null,null,null,null,null,null,null,null,null,null,null,null,null,null,null,null,null,null,null,null,null,null,null,null,null,null,null,null,null,null,null,null,null,null,null,null,"（20:30　退席）"]
[]
["予約\n番号",null,{"$f":"C1","v":12345},null,null,null,null,"団体\n区分",null,{"$f":"J1","v":"学校教育団体"},null,null,null,null,null,"ご予約名",null,null,null,{"$f":"T1","v":0},null,null,null,null,null,null,null,null,null,null,null,null,null,null,null,null,null,null,"ご利用\n開始日",null,null,{"$f":"AP1","v":"00:00:00"}]
[]
["3日目",null,null,"朝",null,null,null,null,null,null,"朝食",null,null,null,null,null,null,null,null,null,null,null,null,null,null,null,null,null,null,null,null,null,null,null,null,null,null,null,null,null,null,"提供可能時間\n（7:30～8:30）"]
[{"$f":"AP1+2","v":"1900-01-02"}]
[]
[null,null,null,"昼",null,null,null,null,null,null,"昼食",null,null,null,null,null,null,null,null,null,null,null,null,null,null,null,null,null,null,null,null,null,null,null,null,null,null,null,null,null,null,"提供可能時間\n（11:30～13:30）\n※ご予約がない方は\n 12:00～となります\nお 弁 当　可能時間\n（9:00～12:00）"]
[]
[]
[]
[]
[null,null,null,"夕",null,null,null,null,null,null,"夕食",null,null,null,null,null,null,null,null,null,null,null,null,null,null,null,null,null,null,null,null,null,null,null,null,null,null,null,null,null,null,"提供可能時間\n （17:00～20:00）"]
[]
[]
[]
[null,null,null,null,null,null,null,null,null,null,null,null,null,null,null,null,null,null,null,null,null,null,null,null,null,null,null,null,null,null,null,null,null,null,null,null,null,null,null,null,null,"（20:30　退席）"]
["4日目",null,null,"朝",null,null,null,null,null,null,"朝食",null,null,null,null,null,null,null,null,null,null,null,null,null,null,null,null,null,null,null,null,null,null,null,null,null,null,null,null,null,null,"提供可能時間\n（7:30～8:30）"]
[{"$f":"AP1+3","v":"1900-01-03"}]
[]
[null,null,null,"昼",null,null,null,null,null,null,"昼食",null,null,null,null,null,null,null,null,null,null,null,null,null,null,null,null,null,null,null,null,null,null,null,null,null,null,null,null,null,null,"提供可能時間\n（11:30～13:30）\n※ご予約がない方は\n 12:00～となります\nお 弁 当　可能時間\n（9:00～12:00）"]
[]
[]
[]
[]
[null,null,null,"夕",null,null,null,null,null,null,"夕食",null,null,null,null,null,null,null,null,null,null,null,null,null,null,null,null,null,null,null,null,null,null,null,null,null,null,null,null,null,null,"提供可能時間\n （17:00～20:00）"]
[]
[]
[]
[null,null,null,null,null,null,null,null,null,null,null,null,null,null,null,null,null,null,null,null,null,null,null,null,null,null,null,null,null,null,null,null,null,null,null,null,null,null,null,null,null,"（20:30　退席）"]
["5日目",null,null,"朝",null,null,null,null,null,null,"朝食",null,null,null,null,null,null,null,null,null,null,null,null,null,null,null,null,null,null,null,null,null,null,null,null,null,null,null,null,null,null,"提供可能時間\n（7:30～8:30）"]
[{"$f":"AP1+4","v":"1900-01-04"}]
[]
[null,null,null,"昼",null,null,null,null,null,null,"昼食",null,null,null,null,null,null,null,null,null,null,null,null,null,null,null,null,null,null,null,null,null,null,null,null,null,null,null,null,null,null,"提供可能時間\n（11:30～13:30）\n※ご予約がない方は\n 12:00～となります\nお 弁 当　可能時間\n（9:00～12:00）"]

{"sheet":"例２","index":1,"n_rows":44,"n_cols":48,"rows_kept":44,"cut":false,"hidden":false,"merged":[[42,39,42,40],[43,0,43,22],[43,23,43,26],[43,27,43,32],[43,33,43,34],[43,35,43,36],[43,37,43,38],[43,39,43,40],[42,0,42,22],[42,23,42,26],[42,27,42,32],[42,33,42,34],[42,35,42,36],[42,37,42,38],[40,27,40,40],[41,0,41,22],[41,23,41,26],[41,27,41,32],[41,33,41,34],[41,35,41,36],[41,37,41,38],[41,39,41,40],[38,41,43,48],[39,0,39,22],[39,23,39,26],[39,27,39,32],[39,33,39,34],[39,35,39,36],[39,37,39,38],[39,39,39,40],[40,0,40,22],[40,23,40,26],[37,27,38,32],[37,33,38,34],[37,35,38,36],[37,37,38,38],[37,39,38,40],[38,6,38,11],[38,12,38,15],[38,16,38,22],[35,39,36,40],[35,41,37,48],[36,6,36,11],[36,12,36,15],[36,16,36,22],[37,0,38,5],[37,6,37,11],[37,12,37,15],[37,16,37,22],[37,23,38,26],[34,41,34,48],[35,0,36,5],[35,6,35,11],[35,12,35,15],[35,16,35,22],[35,23,36,26],[35,27,36,32],[35,33,36,34],[35,35,36,36],[35,37,36,38],[33,27,34,32],[33,33,34,34],[33,35,34,36],[33,37,34,38],[33,39,34,40],[34,6,34,11],[34,12,34,15],[34,16,34,22],[33,0,34,5],[33,6,33,11],[33,12,33,15],[33,16,33,22],[33,23,34,26],[32,41,33,42],[32,0,32,22],[32,23,32,26],[32,27,32,32],[32,33,32,34],[29,27,29,32],[29,33,29,34],[29,35,29,36],[29,37,29,38],[32,39,32,40],[30,35,30,36],[30,37,30,38],[30,39,30,40],[29,0,29,22],[29,23,29,26],[32,43,33,44],[32,45,33,46],[32,47,33,48],[32,35,32,36],[32,37,32,38],[27,0,27,22],[27,23,27,26],[27,27,27,32],[27,33,27,34],[27,35,27,36],[27,37,27,38],[30,41,31,48],[31,0,31,22],[31,23,31,26],[31,27,31,32],[31,33,31,34],[31,35,31,36],[31,37,31,38],[31,39,31,40],[29,39,29,40],[30,0,30,22],[30,23,30,26],[30,27,30,32],[30,33,30,34],[25,39,25,40],[25,41,25,48],[26,0,26,22],[26,23,26,26],[26,27,26,32],[26,33,26,34],[26,35,26,36],[26,37,26,38],[26,39,26,40],[26,41,29,48],[25,0,25,22],[25,23,25,26],[25,27,25,32],[25,33,25,34],[25,35,25,36],[25,37,25,38],[27,39,27,40],[28,0,28,22],[28,23,28,26],[28,27,28,32],[28,33,28,34],[28,35,28,36],[28,37,28,38],[28,39,28,40],[20,0,20,1],[20,2,20,48],[21,2,21,48],[22,0,23,48],[24,0,24,22],[24,23,24,26],[24,27,24,40],[24,41,24,48],[14,10,14,20],[14,21,14,33],[14,34,14,40],[17,0,18,32],[19,0,19,1],[19,2,19,48],[5,0,14,9],[5,10,5,20],[5,21,5,33],[5,34,5,40],[5,41,5,48],[6,10,7,20],[6,21,6,33],[9,10,10,18],[9,19,10,20],[9,21,9,33],[12,41,12,48],[13,21,13,33],[13,34,13,40],[13,41,14,48],[11,10,13,20],[11,21,11,33],[11,34,11,40],[11,41,11,42],[11,43,11,44],[11,45,11,46],[11,47,11,48],[12,21,12,33],[12,34,12,40],[9,34,9,40],[9,41,10,48],[10,21,10,33],[10,34,10,40],[6,34,6,40],[6,41,8,48],[7,21,7,33],[7,34,7,40],[8,10,8,20],[8,21,8,33],[8,34,8,40],[0,0,0,3],[0,4,0,9],[0,10,0,13],[0,14,0,36],[0,37,0,40],[0,41,0,48],[1,0,1,1],[1,2,1,46],[2,0,3,17]]}
["予約番号",null,null,null,null,null,null,null,null,null,"ご予約名",null,null,null,null,null,null,null,null,null,null,null,null,null,null,null,null,null,null,null,null,null,null,null,null,null,null,"ご利用日"]
["〇",null,"各御希望内容のメニューに応じて、色掛け部分をご選択およびご記入ください。"]
["　⑥食事確認表"]
[]
[]
["パーティー\nメニュー\n＊学習室、教室をご利用の\n場合は夜間（18時～）のみ",null,null,null,null,null,null,null,null,null,"食事場所",null,null,null,null,null,null,null,null,null,null,"メニュー",null,null,null,null,null,null,null,null,null,null,null,null,"数量",null,null,null,null,null,null,"開始時間"]
[null,null,null,null,null,null,null,null,null,null,null,null,null,null,null,null,null,null,null,null,null,"□　コンビネーションサラダ",null,null,null,null,null,null,null,null,null,null,null,null,null,null,null,null,null,null,null,"☆提供可能時間\nレストラン:\n　　　17:30～19:30\n4階:\n　　　18:00～19:30"]
[null,null,null,null,null,null,null,null,null,null,null,null,null,null,null,null,null,null,null,null,null,"□　たこ焼き（12個）"]
[null,null,null,null,null,null,null,null,null,null,"〇座席数",null,null,null,null,null,null,null,null,null,null,"□　チャーハン（800ｇ）"]
[null,null,null,null,null,null,null,null,null,null,null,null,null,null,null,null,null,null,null,"席",null,"□　ソース焼きそば（800ｇ）",null,null,null,null,null,null,null,null,null,null,null,null,null,null,null,null,null,null,null,"☆ご利用日"]
[null,null,null,null,null,null,null,null,null,null,null,null,null,null,null,null,null,null,null,null,null,"□　鶏のから揚げ＆ポテトフライ"]
[null,null,null,null,null,null,null,null,null,null,"※学習室・教室のご利用の\n場合、事前の施設予約が\n必要となります。",null,null,null,null,null,null,null,null,null,null,"□　鶏皮餃子＆とうもろこし揚げ",null,null,null,null,null,null,null,null,null,null,null,null,null,null,null,null,null,null,null,null,null,"月",null,null,null,"日"]
[null,null,null,null,null,null,null,null,null,null,null,null,null,null,null,null,null,null,null,null,null,"□　スナック盛り合わせ",null,null,null,null,null,null,null,null,null,null,null,null,null,null,null,null,null,null,null,"☆提供時間"]
[null,null,null,null,null,null,null,null,null,null,null,null,null,null,null,null,null,null,null,null,null,"□　春巻き＆海老せん"]
[null,null,null,null,null,null,null,null,null,null,null,null,null,null,null,null,null,null,null,null,null,"□　苺のロールケーキ＆プチシュークリーム"]
[]
[]
["　野外炊爨メニュー　（　野外炊爨場　予約者限定　）"]
[]
["○",null,"事前に野外炊爨場の予約が必要です。予約のない方の記入は無効となります。"]
["○",null,"グループ分けのご希望を承ります。未記入の方は、適当と思われるグループ分けでご提供します。"]
[null,null,"（　記載例： 　お肉セット 　数量 30 　希望あり→ 5人前 × 6グループ　）"]
[]
[]
["メニュー",null,null,null,null,null,null,null,null,null,null,null,null,null,null,null,null,null,null,null,null,null,null,"数量",null,null,null,"提供時のグループ分け希望",null,null,null,null,null,null,null,null,null,null,null,null,null,"提供可能時間\n （17:00～20:00）"]
["□　肉/魚介セット",null,null,null,null,null,null,null,null,null,null,null,null,null,null,null,null,null,null,null,null,null,null,null,null,null,null,null,null,null,null,null,null,null,null,"人前×",null,null,null,"G",null,"☆提供可能時間"]
["□　お肉セット",null,null,null,null,null,null,null,null,null,null,null,null,null,null,null,null,null,null,null,null,null,null,null,null,null,null,null,null,null,null,null,null,null,null,"人前×",null,null,null,"G",null,"昼（10:00～\n12:00）\n夕（15:00～18:00）"]
["□　魚介セット",null,null,null,null,null,null,null,null,null,null,null,null,null,null,null,null,null,null,null,null,null,null,null,null,null,null,null,null,null,null,null,null,null,null,"人前×",null,null,null,"G"]
["□　焼きそばセット",null,null,null,null,null,null,null,null,null,null,null,null,null,null,null,null,null,null,null,null,null,null,null,null,null,null,null,null,null,null,null,null,null,null,"人前×",null,null,null,"G"]
["□　牛肉/ソーセージ",null,null,null,null,null,null,null,null,null,null,null,null,null,null,null,null,null,null,null,null,null,null,null,null,null,null,null,null,null,null,null,null,null,null,"人前×",null,null,null,"G"]
["□　豚肉/ソーセージ",null,null,null,null,null,null,null,null,null,null,null,null,null,null,null,null,null,null,null,null,null,null,null,null,null,null,null,null,null,null,null,null,null,null,"人前×",null,null,null,"G",null,"☆ご利用日"]
["□　鶏肉/ソーセージ",null,null,null,null,null,null,null,null,null,null,null,null,null,null,null,null,null,null,null,null,null,null,null,null,null,null,null,null,null,null,null,null,null,null,"人前×",null,null,null,"G"]
["□　野菜セット",null,null,null,null,null,null,null,null,null,null,null,null,null,null,null,null,null,null,null,null,null,null,null,null,null,null,null,null,null,null,null,null,null,null,"人前×",null,null,null,"G",null,null,null,"月",null,null,null,"日"]
["□　ビーフ\n　　カレーセット",null,null,null,null,null,"野菜の提供に\nついて",null,null,null,null,null,"味に\nついて",null,null,null,"お米の提供に\nついて",null,null,null,null,null,null,null,null,null,null,null,null,null,null,null,null,null,null,"人前×",null,null,null,"G"]
[null,null,null,null,null,null,null,null,null,null,null,null,null,null,null,null,null,null,null,null,null,null,null,null,null,null,null,null,null,null,null,null,null,null,null,null,null,null,null,null,null,"☆提供時間"]
["□　ポーク\n　　カレーセット",null,null,null,null,null,"野菜の提供に\nついて",null,null,null,null,null,"味に\nついて",null,null,null,"お米の提供に\nついて",null,null,null,null,null,null,null,null,null,null,null,null,null,null,null,null,null,null,"人前×",null,null,null,"G"]
[]
["□　チキン\n　　カレーセット",null,null,null,null,null,"野菜の提供に\nついて",null,null,null,null,null,"味に\nついて",null,null,null,"お米の提供に\nついて",null,null,null,null,null,null,null,null,null,null,null,null,null,null,null,null,null,null,"人前×",null,null,null,"G"]
[]
["□　味噌煮込みうどん",null,null,null,null,null,null,null,null,null,null,null,null,null,null,null,null,null,null,null,null,null,null,null,null,null,null,null,null,null,null,null,null,null,null,"人前×",null,null,null,"G"]
["□　単品サラダ",null,null,null,null,null,null,null,null,null,null,null,null,null,null,null,null,null,null,null,null,null,null,null,null,null,null,"1人前ずつ小皿でご提供になります。"]
["□　フルーツポンチ",null,null,null,null,null,null,null,null,null,null,null,null,null,null,null,null,null,null,null,null,null,null,null,null,null,null,null,null,null,null,null,null,null,null,"人前×",null,null,null,"G"]
["□　ライス単品",null,null,null,null,null,null,null,null,null,null,null,null,null,null,null,null,null,null,null,null,null,null,null,null,null,null,null,null,null,null,null,null,null,null,"人前×",null,null,null,"G"]
["□　生米単品",null,null,null,null,null,null,null,null,null,null,null,null,null,null,null,null,null,null,null,null,null,null,null,null,null,null,null,null,null,null,null,null,null,null,"人前×",null,null,null,"G"]

{"sheet":"【入力用】食事確認表","index":2,"n_rows":76,"n_cols":42,"rows_kept":76,"cut":false,"hidden":false,"merged":[[25,3,29,5],[25,6,29,9],[29,32,29,40],[28,32,28,40],[29,41,29,47],[20,6,24,9],[20,0,20,2],[20,3,24,5],[19,32,19,40],[19,41,19,47],[20,32,20,40],[23,13,23,31],[24,13,24,31],[26,13,26,31],[27,13,27,31],[28,13,28,31],[29,13,29,31],[25,10,29,12],[25,32,25,40],[25,13,25,31],[25,41,26,47],[27,41,28,47],[16,0,16,1],[20,13,20,31],[13,2,13,47],[19,0,19,5],[19,6,19,9],[21,13,21,31],[22,13,22,31],[20,10,24,12],[17,0,17,1],[17,2,17,47],[16,2,16,47],[15,0,15,1],[15,2,15,47],[19,10,19,12],[19,13,19,31],[21,32,21,40],[22,32,22,40],[23,32,23,40],[24,32,24,40],[20,41,22,47],[23,41,24,47],[21,0,29,2],[26,32,26,40],[27,32,27,40],[30,41,30,47],[33,32,33,40],[36,32,36,40],[36,13,36,31],[33,10,37,12],[34,13,34,31],[54,32,54,40],[38,10,42,12],[54,41,55,47],[55,32,55,40],[37,32,37,40],[40,13,40,31],[41,13,41,31],[30,32,30,40],[31,32,31,40],[32,32,32,40],[31,41,32,47],[33,41,35,47],[36,41,37,47],[38,41,39,47],[40,41,41,47],[42,41,42,47],[49,41,51,47],[50,13,50,31],[44,0,44,1],[44,2,44,6],[44,7,44,8],[44,9,44,14],[30,3,32,5],[33,6,37,9],[33,3,37,5],[38,32,38,40],[34,32,34,40],[35,32,35,40],[30,13,30,31],[35,13,35,31],[37,13,37,31],[30,10,32,12],[31,13,31,31],[32,13,32,31],[33,13,33,31],[42,13,42,31],[31,0,42,2],[42,32,42,40],[41,32,41,40],[39,32,39,40],[40,32,40,40],[30,6,32,9],[59,0,59,2],[59,3,61,5],[59,6,61,9],[47,0,58,2],[47,13,47,31],[48,13,48,31],[49,3,53,5],[49,6,53,9],[49,10,53,12],[46,6,48,9],[46,10,48,12],[46,13,46,31],[54,3,58,5],[54,6,58,9],[54,10,58,12],[54,13,54,31],[60,0,71,2],[60,13,60,31],[61,13,61,31],[67,3,71,5],[46,0,46,2],[46,3,48,5],[55,13,55,31],[56,13,56,31],[0,41,0,47],[14,0,14,1],[14,2,14,47],[0,0,0,1],[0,7,0,8],[0,9,0,14],[0,2,0,6],[0,15,0,18],[2,0,3,17],[5,0,9,5],[5,6,5,25],[5,26,9,47],[6,6,6,25],[7,6,9,17],[11,0,11,1],[11,2,11,47],[12,0,12,1],[12,2,12,47],[13,0,13,1],[0,38,0,40],[0,19,0,37],[30,0,30,2],[38,3,42,5],[38,6,42,9],[38,13,38,31],[39,13,39,31],[59,10,61,12],[59,13,59,31],[58,41,58,47],[56,41,57,47],[56,32,56,40],[44,41,44,47],[46,41,46,47],[47,41,48,47],[49,13,49,31],[49,32,49,40],[44,15,44,18],[44,19,44,37],[44,38,44,40],[46,32,46,40],[47,32,47,40],[48,32,48,40],[51,32,51,40],[53,32,53,40],[57,13,57,31],[62,3,66,5],[62,6,66,9],[62,10,66,12],[62,13,62,31],[62,32,62,40],[63,13,63,31],[63,32,63,40],[64,13,64,31],[65,13,65,31],[65,32,65,40],[66,13,66,31],[66,32,66,40],[64,32,64,40],[72,0,72,2],[72,3,74,5],[72,6,74,9],[72,10,74,12],[72,13,72,31],[72,41,72,47],[70,32,70,40],[67,6,71,9],[67,10,71,12],[67,13,67,31],[73,0,79,2],[78,13,78,31],[78,32,78,40],[78,41,79,47],[79,13,79,31],[79,32,79,40],[73,13,73,31],[73,41,74,47],[74,13,74,31],[75,41,77,47],[76,13,76,31],[76,32,76,40],[77,13,77,31],[69,13,69,31],[69,32,69,40],[69,41,70,47],[70,13,70,31],[75,3,79,5],[75,6,79,9],[75,10,79,12],[75,13,75,31],[75,32,75,40],[71,13,71,31],[72,32,72,40],[73,32,73,40],[74,32,74,40],[77,32,77,40],[71,32,71,40],[71,41,71,47],[67,32,67,40],[67,41,68,47],[68,32,68,40],[50,32,50,40],[51,13,51,31],[52,13,52,31],[52,32,52,40],[53,13,53,31],[62,41,64,47],[65,41,66,47],[59,41,59,47],[60,41,61,47],[52,41,53,47],[57,32,57,40],[58,13,58,31],[58,32,58,40],[59,32,59,40],[60,32,60,40],[61,32,61,40],[68,13,68,31]]}
["予約\n番号",null,null,null,null,null,null,"団体\n区分",null,null,null,null,null,null,null,"ご予約名",null,null,null,null,null,null,null,null,null,null,null,null,null,null,null,null,null,null,null,null,null,null,"ご利用\n開始日"]
[]
["　⑥食事確認表"]
[]
[]
["【重要事項】　",null,null,null,null,null,"食物アレルギーの方はいらっしゃいますか？",null,null,null,null,null,null,null,null,null,null,null,null,null,null,null,null,null,null,null,"別紙の「アレルギー対応申込書」に\n氏名、年齢、アレルギーの詳細を\nご記入ください。"]
[null,null,null,null,null,null,"＊どちらかを必ずご選択ください。"]
[]
[]
[]
[]
["○",null,"色掛け部分（プルダウンおよび入力欄）をご選択いただきメニュー、数量、開始時間をご記入下さい。"]
["○",null,"パーティーメニュー、野外炊爨をご希望の場合、別紙「パーティ・野外炊爨」にご記入下さい。"]
["○",null,"上記団体区分をご選択いただかないと、各プルダウンが対応しません。必ず団体区分をご選択ください。"]
["○",null,"団体食のお申込みは、ご利用人数が10名様以上の団体のみお申込みができます。"]
[null,null,"また、団体食AとBなどのように２種類以上の団体食は組み合わせ出来ません。"]
["○",null,"”予約せず食べる” をご選択の場合、メニューや数量の選択は必要ありません。当日現金精算となります。"]
["○",null,"最長4泊5日分までご入力ができます。宿泊数に応じてご入力ください。"]
[]
[null,null,null,null,null,null,"要・不要",null,null,null,"時間区分",null,null,"メニューをお選びください",null,null,null,null,null,null,null,null,null,null,null,null,null,null,null,null,null,null,"数量をご入力ください",null,null,null,null,null,null,null,null,"開始時間"]
["1日目",null,null,"昼",null,null,null,null,null,null,"昼食",null,null,null,null,null,null,null,null,null,null,null,null,null,null,null,null,null,null,null,null,null,null,null,null,null,null,null,null,null,null,"提供可能時間\n（11:30～13:00）\n※ご予約がない方は\n 12:00～となります\nお 弁 当　可能時間\n（9:00～12:00）"]
[{"$f":"AP1","v":"00:00:00"}]
[]
[]
[]
[null,null,null,"夕",null,null,null,null,null,null,"夕食",null,null,null,null,null,null,null,null,null,null,null,null,null,null,null,null,null,null,null,null,null,null,null,null,null,null,null,null,null,null,"提供可能時間\n 日替わり（17:00～19:30）\n団体食（17:30～19:30）"]
[]
[]
[]
[null,null,null,null,null,null,null,null,null,null,null,null,null,null,null,null,null,null,null,null,null,null,null,null,null,null,null,null,null,null,null,null,null,null,null,null,null,null,null,null,null,"（20:30　退席）"]
["2日目",null,null,"朝",null,null,null,null,null,null,"朝食",null,null,null,null,null,null,null,null,null,null,null,null,null,null,null,null,null,null,null,null,null,null,null,null,null,null,null,null,null,null,"提供可能時間\n（7:30～8:30）"]
[{"$f":"A22+1","v":"1900-01-01"}]
[]
[null,null,null,"昼",null,null,null,null,null,null,"昼食",null,null,null,null,null,null,null,null,null,null,null,null,null,null,null,null,null,null,null,null,null,null,null,null,null,null,null,null,null,null,"提供可能時間\n（11:30～13:00）\n※ご予約がない方は\n 12:00～となります\nお 弁 当　可能時間\n（9:00～12:00）"]
[]
[]
[]
[]
[null,null,null,"夕",null,null,null,null,null,null,"夕食",null,null,null,null,null,null,null,null,null,null,null,null,null,null,null,null,null,null,null,null,null,null,null,null,null,null,null,null,null,null,"提供可能時間\n 日替わり（17:00～19:30）\n団体食（17:30～19:30）"]
[]
[]
[]
[null,null,null,null,null,null,null,null,null,null,null,null,null,null,null,null,null,null,null,null,null,null,null,null,null,null,null,null,null,null,null,null,null,null,null,null,null,null,null,null,null,"（20:30　退席）"]
[]
["予約\n番号",null,{"$f":"C1","v":0},null,null,null,null,"団体\n区分",null,{"$f":"J1","v":0},null,null,null,null,null,"ご予約名",null,null,null,{"$f":"T1","v":0},null,null,null,null,null,null,null,null,null,null,null,null,null,null,null,null,null,null,"ご利用\n開始日",null,null,{"$f":"AP1","v":"00:00:00"}]
[]
["3日目",null,null,"朝",null,null,null,null,null,null,"朝食",null,null,null,null,null,null,null,null,null,null,null,null,null,null,null,null,null,null,null,null,null,null,null,null,null,null,null,null,null,null,"提供可能時間\n（7:30～8:30）"]
[{"$f":"AP1+2","v":"1900-01-02"}]
[]
[null,null,null,"昼",null,null,null,null,null,null,"昼食",null,null,null,null,null,null,null,null,null,null,null,null,null,null,null,null,null,null,null,null,null,null,null,null,null,null,null,null,null,null,"提供可能時間\n（11:30～13:00）\n※ご予約がない方は\n 12:00～となります\nお 弁 当　可能時間\n（9:00～12:00）"]
[]
[]
[]
[]
[null,null,null,"夕",null,null,null,null,null,null,"夕食",null,null,null,null,null,null,null,null,null,null,null,null,null,null,null,null,null,null,null,null,null,null,null,null,null,null,null,null,null,null,"提供可能時間\n 日替わり（17:00～19:30）\n団体食（17:30～19:30）"]
[]
[]
[]
[null,null,null,null,null,null,null,null,null,null,null,null,null,null,null,null,null,null,null,null,null,null,null,null,null,null,null,null,null,null,null,null,null,null,null,null,null,null,null,null,null,"（20:30　退席）"]
["4日目",null,null,"朝",null,null,null,null,null,null,"朝食",null,null,null,null,null,null,null,null,null,null,null,null,null,null,null,null,null,null,null,null,null,null,null,null,null,null,null,null,null,null,"提供可能時間\n（7:30～8:30）"]
[{"$f":"AP1+3","v":"1900-01-03"}]
[]
[null,null,null,"昼",null,null,null,null,null,null,"昼食",null,null,null,null,null,null,null,null,null,null,null,null,null,null,null,null,null,null,null,null,null,null,null,null,null,null,null,null,null,null,"提供可能時間\n（11:30～13:00）\n※ご予約がない方は\n 12:00～となります\nお 弁 当　可能時間\n（9:00～12:00）"]
[]
[]
[]
[]
[null,null,null,"夕",null,null,null,null,null,null,"夕食",null,null,null,null,null,null,null,null,null,null,null,null,null,null,null,null,null,null,null,null,null,null,null,null,null,null,null,null,null,null,"提供可能時間\n 日替わり（17:00～19:30）\n団体食（17:30～19:30）"]
[]
[]
[]
[null,null,null,null,null,null,null,null,null,null,null,null,null,null,null,null,null,null,null,null,null,null,null,null,null,null,null,null,null,null,null,null,null,null,null,null,null,null,null,null,null,"（20:30　退席）"]
["5日目",null,null,"朝",null,null,null,null,null,null,"朝食",null,null,null,null,null,null,null,null,null,null,null,null,null,null,null,null,null,null,null,null,null,null,null,null,null,null,null,null,null,null,"提供可能時間\n（7:30～8:30）"]
[{"$f":"AP1+4","v":"1900-01-04"}]
[]
[null,null,null,"昼",null,null,null,null,null,null,"昼食",null,null,null,null,null,null,null,null,null,null,null,null,null,null,null,null,null,null,null,null,null,null,null,null,null,null,null,null,null,null,"提供可能時間\n（11:30～13:00）\n※ご予約がない方は\n 12:00～となります\nお 弁 当　可能時間\n（9:00～12:00）"]

{"sheet":"【入力用】パーティ・野炊","index":3,"n_rows":45,"n_cols":48,"rows_kept":45,"cut":false,"hidden":false,"merged":[[40,23,40,26],[6,34,6,40],[1,0,1,1],[0,0,0,3],[0,4,0,9],[0,10,0,13],[0,41,0,48],[7,21,7,33],[6,21,6,33],[6,10,7,20],[0,37,0,40],[0,14,0,36],[1,2,1,46],[6,41,8,48],[2,0,3,17],[5,0,14,9],[5,10,5,20],[5,21,5,33],[13,21,13,33],[14,10,14,20],[14,21,14,33],[10,21,10,33],[12,41,12,48],[5,34,5,40],[5,41,5,48],[11,21,11,33],[12,21,12,33],[19,2,19,48],[20,2,20,48],[21,2,21,48],[22,0,23,48],[24,0,24,22],[24,23,24,26],[17,0,18,32],[24,27,24,40],[24,41,24,48],[11,41,11,42],[11,45,11,46],[11,47,11,48],[11,43,11,44],[9,41,10,48],[7,34,7,40],[8,34,8,40],[9,34,9,40],[10,34,10,40],[11,34,11,40],[12,34,12,40],[13,34,13,40],[14,34,14,40],[19,0,19,1],[11,10,13,20],[9,19,10,20],[9,10,10,18],[8,21,8,33],[9,21,9,33],[8,10,8,20],[20,0,20,1],[25,33,25,34],[25,41,25,48],[26,41,29,48],[35,23,36,26],[37,23,38,26],[38,6,38,11],[38,12,38,15],[38,16,38,22],[36,6,36,11],[29,0,29,22],[29,23,29,26],[36,12,36,15],[36,16,36,22],[35,6,35,11],[35,12,35,15],[35,16,35,22],[37,6,37,11],[37,12,37,15],[37,16,37,22],[30,0,30,22],[30,23,30,26],[31,0,31,22],[31,23,31,26],[32,0,32,22],[33,23,34,26],[34,12,34,15],[34,16,34,22],[25,0,25,22],[25,23,25,26],[26,0,26,22],[26,23,26,26],[27,0,27,22],[27,23,27,26],[28,0,28,22],[28,23,28,26],[33,16,33,22],[33,0,34,5],[34,6,34,11],[32,23,32,26],[33,6,33,11],[33,12,33,15],[25,27,25,32],[26,27,26,32],[27,27,27,32],[28,27,28,32],[29,27,29,32],[30,27,30,32],[31,27,31,32],[32,27,32,32],[37,27,38,32],[35,27,36,32],[33,27,34,32],[25,35,25,36],[31,37,31,38],[32,37,32,38],[32,41,33,42],[32,43,33,44],[39,35,39,36],[26,33,26,34],[27,33,27,34],[28,33,28,34],[29,33,29,34],[30,33,30,34],[31,33,31,34],[32,33,32,34],[39,33,39,34],[35,33,36,34],[35,35,36,36],[37,33,38,34],[37,35,38,36],[33,33,34,34],[33,35,34,36],[29,35,29,36],[30,35,30,36],[26,35,26,36],[27,35,27,36],[25,37,25,38],[26,37,26,38],[26,39,26,40],[27,39,27,40],[28,39,28,40],[29,39,29,40],[30,39,30,40],[31,39,31,40],[32,39,32,40],[33,39,34,40],[27,37,27,38],[28,37,28,38],[29,37,29,38],[30,37,30,38],[34,41,34,48],[31,35,31,36],[32,35,32,36],[28,35,28,36],[30,41,31,48],[13,41,14,48],[40,27,40,40],[41,27,41,32],[42,27,42,32],[43,27,43,32],[41,33,41,34],[41,35,41,36],[41,37,41,38],[41,39,41,40],[42,33,42,34],[42,35,42,36],[42,37,42,38],[42,39,42,40],[43,33,43,34],[43,35,43,36],[43,37,43,38],[32,45,33,46],[32,47,33,48],[39,37,39,38],[25,39,25,40],[39,39,39,40],[35,37,36,38],[35,39,36,40],[33,37,34,38],[44,0,44,22],[44,23,44,26],[44,27,44,32],[44,33,44,34],[44,35,44,36],[44,37,44,38],[44,39,44,40],[38,41,44,48],[35,41,37,48],[43,39,43,40],[37,37,38,38],[37,39,38,40],[39,27,39,32],[35,0,36,5],[37,0,38,5],[41,23,41,26],[41,0,41,22],[39,23,39,26],[42,0,42,22],[43,0,43,22],[43,23,43,26],[39,0,39,22],[40,0,40,22],[42,23,42,26]]}
["予約番号",null,null,null,{"$f":"【入力用】食事確認表!C1","v":0},null,null,null,null,null,"ご予約名",null,null,null,{"$f":"【入力用】食事確認表!T1","v":0},null,null,null,null,null,null,null,null,null,null,null,null,null,null,null,null,null,null,null,null,null,null,"ご利用日",null,null,null,{"$f":"【入力用】食事確認表!AP1","v":"00:00:00"}]
["〇",null,"各御希望内容のメニューに応じて、色掛け部分をご選択およびご記入ください。"]
["　⑥食事確認表"]
[]
[]
["パーティー\nメニュー\n＊学習室をご利用の\n場合は夜間（18時～）のみ",null,null,null,null,null,null,null,null,null,"食事場所",null,null,null,null,null,null,null,null,null,null,"メニュー",null,null,null,null,null,null,null,null,null,null,null,null,"数量",null,null,null,null,null,null,"開始時間"]
[null,null,null,null,null,null,null,null,null,null,null,null,null,null,null,null,null,null,null,null,null,"□　コンビネーションサラダ",null,null,null,null,null,null,null,null,null,null,null,null,null,null,null,null,null,null,null,"☆提供可能時間\nレストラン:\n　　　17:30～19:30\n4階:\n　　　18:00～19:30"]
[null,null,null,null,null,null,null,null,null,null,null,null,null,null,null,null,null,null,null,null,null,"□　たこ焼き（12個）"]
[null,null,null,null,null,null,null,null,null,null,"〇座席数",null,null,null,null,null,null,null,null,null,null,"□　チャーハン（800ｇ）"]
[null,null,null,null,null,null,null,null,null,null,null,null,null,null,null,null,null,null,null,"席",null,"□　ソース焼きそば（800ｇ）",null,null,null,null,null,null,null,null,null,null,null,null,null,null,null,null,null,null,null,"☆ご利用日"]
[null,null,null,null,null,null,null,null,null,null,null,null,null,null,null,null,null,null,null,null,null,"□　鶏のから揚げ＆ポテトフライ"]
[null,null,null,null,null,null,null,null,null,null,"※学習室のご利用の\n場合、事前の施設予約が\n必要となります。",null,null,null,null,null,null,null,null,null,null,"□　鶏皮餃子＆とうもろこし揚げ",null,null,null,null,null,null,null,null,null,null,null,null,null,null,null,null,null,null,null,null,null,"月",null,null,null,"日"]
[null,null,null,null,null,null,null,null,null,null,null,null,null,null,null,null,null,null,null,null,null,"□　スナック盛り合わせ",null,null,null,null,null,null,null,null,null,null,null,null,null,null,null,null,null,null,null,"☆提供時間"]
[null,null,null,null,null,null,null,null,null,null,null,null,null,null,null,null,null,null,null,null,null,"□　春巻き＆海老せん"]
[null,null,null,null,null,null,null,null,null,null,null,null,null,null,null,null,null,null,null,null,null,"□　苺のロールケーキ＆プチシュークリーム"]
[]
[]
["　野外炊爨メニュー　（　野外炊爨場　予約者限定　）"]
[]
["○",null,"事前に野外炊爨場の予約が必要です。予約のない方の記入は無効となります。"]
["○",null,"グループ分けのご希望を承ります。未記入の方は、適当と思われるグループ分けでご提供します。"]
[null,null,"（　記載例： 　お肉セット 　数量 30 　希望あり→ 5人前 × 6グループ　）"]
[]
[]
["メニュー",null,null,null,null,null,null,null,null,null,null,null,null,null,null,null,null,null,null,null,null,null,null,"数量",null,null,null,"提供時のグループ分け希望",null,null,null,null,null,null,null,null,null,null,null,null,null,"提供可能時間\n "]
["□　肉/魚介セット",null,null,null,null,null,null,null,null,null,null,null,null,null,null,null,null,null,null,null,null,null,null,null,null,null,null,null,null,null,null,null,null,null,null,"人前×",null,null,null,"G",null,"☆提供可能時間"]
["□　お肉セット",null,null,null,null,null,null,null,null,null,null,null,null,null,null,null,null,null,null,null,null,null,null,null,null,null,null,null,null,null,null,null,null,null,null,"人前×",null,null,null,"G",null,"昼（10:00～\n12:00）\n夕（15:00～18:00）"]
["□　魚介セット",null,null,null,null,null,null,null,null,null,null,null,null,null,null,null,null,null,null,null,null,null,null,null,null,null,null,null,null,null,null,null,null,null,null,"人前×",null,null,null,"G"]
["□　焼きそばセット",null,null,null,null,null,null,null,null,null,null,null,null,null,null,null,null,null,null,null,null,null,null,null,null,null,null,null,null,null,null,null,null,null,null,"人前×",null,null,null,"G"]
["□　牛肉/ソーセージ",null,null,null,null,null,null,null,null,null,null,null,null,null,null,null,null,null,null,null,null,null,null,null,null,null,null,null,null,null,null,null,null,null,null,"人前×",null,null,null,"G"]
["□　豚肉/ソーセージ",null,null,null,null,null,null,null,null,null,null,null,null,null,null,null,null,null,null,null,null,null,null,null,null,null,null,null,null,null,null,null,null,null,null,"人前×",null,null,null,"G",null,"☆ご利用日"]
["□　鶏肉/ソーセージ",null,null,null,null,null,null,null,null,null,null,null,null,null,null,null,null,null,null,null,null,null,null,null,null,null,null,null,null,null,null,null,null,null,null,"人前×",null,null,null,"G"]
["□　野菜セット",null,null,null,null,null,null,null,null,null,null,null,null,null,null,null,null,null,null,null,null,null,null,null,null,null,null,null,null,null,null,null,null,null,null,"人前×",null,null,null,"G",null,null,null,"月",null,null,null,"日"]
["□　ビーフ\n　　カレーセット",null,null,null,null,null,"野菜の提供に\nついて",null,null,null,null,null,"味に\nついて",null,null,null,"お米の提供に\nついて",null,null,null,null,null,null,null,null,null,null,null,null,null,null,null,null,null,null,"人前×",null,null,null,"G"]
[null,null,null,null,null,null,null,null,null,null,null,null,null,null,null,null,null,null,null,null,null,null,null,null,null,null,null,null,null,null,null,null,null,null,null,null,null,null,null,null,null,"☆提供時間"]
["□　ポーク\n　　カレーセット",null,null,null,null,null,"野菜の提供に\nついて",null,null,null,null,null,"味に\nついて",null,null,null,"お米の提供に\nついて",null,null,null,null,null,null,null,null,null,null,null,null,null,null,null,null,null,null,"人前×",null,null,null,"G"]
[]
["□　チキン\n　　カレーセット",null,null,null,null,null,"野菜の提供に\nついて",null,null,null,null,null,"味に\nついて",null,null,null,"お米の提供に\nついて",null,null,null,null,null,null,null,null,null,null,null,null,null,null,null,null,null,null,"人前×",null,null,null,"G"]
[]
["□　味噌煮込みうどん",null,null,null,null,null,null,null,null,null,null,null,null,null,null,null,null,null,null,null,null,null,null,null,null,null,null,null,null,null,null,null,null,null,null,"人前×",null,null,null,"G"]
["□　単品サラダ",null,null,null,null,null,null,null,null,null,null,null,null,null,null,null,null,null,null,null,null,null,null,null,null,null,null,"1人前ずつ小皿でご提供になります。"]
["□　フルーツポンチ",null,null,null,null,null,null,null,null,null,null,null,null,null,null,null,null,null,null,null,null,null,null,null,null,null,null,null,null,null,null,null,null,null,null,"人前×",null,null,null,"G"]
["□　ライス単品",null,null,null,null,null,null,null,null,null,null,null,null,null,null,null,null,null,null,null,null,null,null,null,null,null,null,null,null,null,null,null,null,null,null,"人前×",null,null,null,"G"]
["□　生米単品",null,null,null,null,null,null,null,null,null,null,null,null,null,null,null,null,null,null,null,null,null,null,null,null,null,null,null,null,null,null,null,null,null,null,"人前×",null,null,null,"G"]
["□　モーニングセット",null,null,null,null,null,null,null,null,null,null,null,null,null,null,null,null,null,null,null,null,null,null,null,null,null,null,null,null,null,null,null,null,null,null,"人前×",null,null,null,"G"]

{"sheet":"マスター①","index":4,"n_rows":34,"n_cols":14,"rows_kept":34,"cut":false,"hidden":false,"merged":[]}
["区分"]
["学校教育団体",null,null,"9:00\n(お弁当のみ)","17:00:00","07:30:00",null,"カットあり","甘口","生米","希望あり",1,1,"10:00:00"]
["青少年団体",null,null,"9:10\n(お弁当のみ)","17:10:00","07:40:00","17:30:00","カットなし","辛口","ライス","希望なし",2,2,"10:10:00"]
["一般団体・企業",null,null,"9:20\n(お弁当のみ)","17:20:00","07:50:00","17:40:00",null,null,null,null,3,3,"10:20:00"]
["一般",null,null,"9:30\n(お弁当のみ)","17:30:00","08:00:00","17:50:00",null,null,null,null,4,4,"10:30:00"]
["個人",null,null,"9:40\n(お弁当のみ)","17:40:00","08:10:00","18:00:00",null,null,null,null,5,5,"10:40:00"]
[null,null,null,"9:50\n(お弁当のみ)","17:50:00","08:20:00","18:10:00",null,null,null,null,6,6,"10:50:00"]
[null,null,null,"10:00\n(お弁当のみ)","18:00:00","08:30:00","18:20:00",null,null,null,null,7,7,"11:00:00"]
["食べない","食べない",null,"10:10\n(お弁当のみ)","18:10:00",null,"18:30:00",null,null,null,null,8,8,"11:10:00"]
["予約して食べる","予約して食べる",null,"10:20\n(お弁当のみ)","18:20:00",null,"18:40:00",null,null,null,null,9,9,"11:20:00"]
["野外炊爨\n(別紙をご入力ください)","予約せず食べる",null,"10:30\n(お弁当のみ)","18:30:00",null,"18:50:00",null,"レストラン",null,null,10,10,"11:30:00"]
["パーティメニュー\n(別紙をご入力ください)","野外炊爨\n(別紙をご入力ください)",null,"10:40\n(お弁当のみ)","18:40:00",null,"19:00:00",null,"学習室(要施設予約)",null,null,null,11,"11:40:00"]
[null,null,null,"10:50\n(お弁当のみ)","18:50:00",null,"19:10:00",null,"教室(要施設予約)",null,null,null,12,"11:50:00"]
[null,null,null,"11:00\n(お弁当のみ)","19:00:00",null,"19:20:00",null,null,null,null,null,13,"12:00:00"]
["メイン",null,null,"11:10\n(お弁当のみ)","19:10:00",null,"19:30:00",null,null,null,null,null,14]
["デザート",null,null,"11:20\n(お弁当のみ)","19:20:00",null,null,null,null,null,null,null,15,"15:00:00"]
[null,null,null,"11:30\n（お弁当可能）","19:30:00",null,null,null,null,null,null,null,16,"15:10:00"]
["ｱﾚﾙｷﾞｰあり",null,null,"11:40\n（お弁当可能）",null,null,null,null,null,null,null,null,17,"15:20:00"]
["ｱﾚﾙｷﾞｰなし",null,null,"11:50\n（お弁当可能）",null,null,null,null,null,null,null,null,18,"15:30:00"]
[null,null,null,"12:00:00",null,null,null,null,null,null,null,null,19,"15:40:00"]
[null,null,null,"12:10:00",null,null,null,null,null,null,null,null,20,"15:50:00"]
[null,null,null,"12:20:00",null,null,null,null,null,null,null,null,21,"16:00:00"]
[null,null,null,"12:30:00",null,null,null,null,null,null,null,null,22,"16:10:00"]
[null,null,null,"12:40:00",null,null,null,null,null,null,null,null,23,"16:20:00"]
[null,null,null,"12:50:00",null,null,null,null,null,null,null,null,24,"16:30:00"]
[null,null,null,"13:00:00",null,null,null,null,null,null,null,null,25,"16:40:00"]
[null,null,null,null,null,null,null,null,null,null,null,null,26,"16:50:00"]
[null,null,null,null,null,null,null,null,null,null,null,null,27,"17:00:00"]
[null,null,null,null,null,null,null,null,null,null,null,null,28,"17:10:00"]
[null,null,null,null,null,null,null,null,null,null,null,null,29,"17:20:00"]
[null,null,null,null,null,null,null,null,null,null,null,null,30,"17:30:00"]
[null,null,null,null,null,null,null,null,null,null,null,null,31,"17:40:00"]
[null,null,null,null,null,null,null,null,null,null,null,null,null,"17:50:00"]
[null,null,null,null,null,null,null,null,null,null,null,null,null,"18:00:00"]

{"sheet":"マスター②","index":5,"n_rows":24,"n_cols":20,"rows_kept":24,"cut":false,"hidden":false,"merged":[]}
[null,"学校教育団体"]
["学校教育団体","朝食",{"$f":"$B$1&$B$2","v":"学校教育団体朝食"},null,"バイキング（小学生以上）","幼児バイキング（年少～年長）","洋定食","和定食","幼児定食A(ﾐｰﾄﾎﾞﾙ＆ｵﾑﾚﾂ)","幼児定食A大人量(ﾐｰﾄﾎﾞﾙ＆ｵﾑﾚﾂ)","幼児定食B(ｿｰｾｰｼﾞﾛｰﾙ＆ｵﾑﾚﾂ)","幼児定食B大人量(ｿｰｾｰｼﾞﾛｰﾙ＆ｵﾑﾚﾂ)","幼児定食C(ｿｰｾｰｼﾞ＆目玉焼き)","幼児定食C大人量(ｿｰｾｰｼﾞ＆目玉焼き)"]
["青少年団体","昼食",{"$f":"$B$1&B3","v":"学校教育団体昼食"},null,"日替定食","幼児Ａ（ﾊﾝﾊﾞｰｸﾞｶﾚｰ）","幼児A大人量（ﾊﾝﾊﾞｰｸﾞｶﾚｰ）","幼児Ｂ（ﾁｬｰﾊﾝ）","幼児B大人量（ﾁｬｰﾊﾝ）","幼児Ｃ（ﾐｰﾄｿｰｽﾊﾟｽﾀ）","幼児C大人量（ﾐｰﾄｿｰｽﾊﾟｽﾀ）","団体Ａ（ﾁｷﾝｸﾞﾘﾙ ｼﾞﾝｼﾞｬｰｿｰｽ）","団体Ｂ（ﾋﾚｶﾂｶﾂｶﾚｰ）","団体Ｃ（ﾐｰﾄﾎﾞｰﾙﾊﾟｽﾀ）","弁当（一般用）（テイクアウトのみ）","弁当（幼児用）（テイクアウトのみ）","追加デザートA（みかんｾﾞﾘｰ）","追加デザートB（ﾌﾟﾘﾝ）","追加デザートC（ｼｮｺﾗﾑｰｽ）","追加デザートD（和菓子）"]
["一般団体・企業","夕食",{"$f":"$B$1&B4","v":"学校教育団体夕食"},null,"日替定食","幼児Ａ（ﾊﾔｼﾗｲｽ）","幼児A一般量（ﾊﾔｼﾗｲｽ）","幼児Ｂ（唐揚げ）","幼児B一般量（唐揚げ）","幼児Ｃ（ﾁｷﾝﾗｲｽ）","幼児C一般量（ﾁｷﾝﾗｲｽ）","団体Ａ（ﾐｯｸｽｸﾞﾘﾙ）","団体Ｂ（鶏のから揚げ）","団体Ｃ（豚肉の味噌焼き重）","わくわく御膳","追加デザートA（みかんｾﾞﾘｰ）","追加デザートB（ﾌﾟﾘﾝ）","追加デザートC（ｼｮｺﾗﾑｰｽ）","追加デザートD（和菓子）"]
["一般・2名から9名"]
["一般・1名","青少年団体"]
[null,"朝食",{"$f":"$B$6&B7","v":"青少年団体朝食"},null,"バイキング（小学生以上）","幼児バイキング（年少～年長）","洋定食","和定食","幼児定食A(ﾐｰﾄﾎﾞﾙ＆ｵﾑﾚﾂ)","幼児定食A大人量(ﾐｰﾄﾎﾞﾙ＆ｵﾑﾚﾂ)","幼児定食B(ｿｰｾｰｼﾞﾛｰﾙ＆ｵﾑﾚﾂ)","幼児定食B大人量(ｿｰｾｰｼﾞﾛｰﾙ＆ｵﾑﾚﾂ)","幼児定食C(ｿｰｾｰｼﾞ＆目玉焼き)","幼児定食C大人量(ｿｰｾｰｼﾞ＆目玉焼き)"]
[null,"昼食",{"$f":"$B$6&B8","v":"青少年団体昼食"},null,"日替定食","幼児Ａ（ﾊﾝﾊﾞｰｸﾞｶﾚｰ）","幼児A大人量（ﾊﾝﾊﾞｰｸﾞｶﾚｰ）","幼児Ｂ（ﾁｬｰﾊﾝ）","幼児B大人量（ﾁｬｰﾊﾝ）","幼児Ｃ（ﾐｰﾄｿｰｽﾊﾟｽﾀ）","幼児C大人量（ﾐｰﾄｿｰｽﾊﾟｽﾀ）","団体Ａ（ﾁｷﾝｸﾞﾘﾙ ｼﾞﾝｼﾞｬｰｿｰｽ）","団体Ｂ（ﾋﾚｶﾂｶﾂｶﾚｰ）","団体Ｃ（ﾐｰﾄﾎﾞｰﾙﾊﾟｽﾀ）","弁当（一般用）（テイクアウトのみ）","弁当（幼児用）（テイクアウトのみ）","追加デザートA（みかんｾﾞﾘｰ）","追加デザートB（ﾌﾟﾘﾝ）","追加デザートC（ｼｮｺﾗﾑｰｽ）","追加デザートD（和菓子）"]
[null,"夕食","青少年団体夕食",null,"日替定食","幼児Ａ（ﾊﾔｼﾗｲｽ）","幼児A一般量（ﾊﾔｼﾗｲｽ）","幼児Ｂ（唐揚げ）","幼児B一般量（唐揚げ）","幼児Ｃ（ﾁｷﾝﾗｲｽ）","幼児C一般量（ﾁｷﾝﾗｲｽ）","団体Ａ（ﾐｯｸｽｸﾞﾘﾙ）","団体Ｂ（鶏のから揚げ）","団体Ｃ（豚肉の味噌焼き重）","わくわく御膳","追加デザートA（みかんｾﾞﾘｰ）","追加デザートB（ﾌﾟﾘﾝ）","追加デザートC（ｼｮｺﾗﾑｰｽ）","追加デザートD（和菓子）"]
[]
[null,"一般団体・企業"]
[null,"朝食",{"$f":"$B$11&B12","v":"一般団体・企業朝食"},null,"バイキング（小学生以上）","幼児バイキング（年少～年長）","洋定食","和定食","幼児定食A(ﾐｰﾄﾎﾞﾙ＆ｵﾑﾚﾂ)","幼児定食A大人量(ﾐｰﾄﾎﾞﾙ＆ｵﾑﾚﾂ)","幼児定食B(ｿｰｾｰｼﾞﾛｰﾙ＆ｵﾑﾚﾂ)","幼児定食B大人量(ｿｰｾｰｼﾞﾛｰﾙ＆ｵﾑﾚﾂ)","幼児定食C(ｿｰｾｰｼﾞ＆目玉焼き)","幼児定食C大人量(ｿｰｾｰｼﾞ＆目玉焼き)"]
[null,"昼食",{"$f":"$B$11&B13","v":"一般団体・企業昼食"},null,"日替定食","幼児Ａ（ﾊﾝﾊﾞｰｸﾞｶﾚｰ）","幼児A大人量（ﾊﾝﾊﾞｰｸﾞｶﾚｰ）","幼児Ｂ（ﾁｬｰﾊﾝ）","幼児B大人量（ﾁｬｰﾊﾝ）","幼児Ｃ（ﾐｰﾄｿｰｽﾊﾟｽﾀ）","幼児C大人量（ﾐｰﾄｿｰｽﾊﾟｽﾀ）","団体Ａ（ﾁｷﾝｸﾞﾘﾙ ｼﾞﾝｼﾞｬｰｿｰｽ）","団体Ｂ（ﾋﾚｶﾂｶﾂｶﾚｰ）","団体Ｃ（ﾐｰﾄﾎﾞｰﾙﾊﾟｽﾀ）","弁当（一般用）（テイクアウトのみ）","弁当（幼児用）（テイクアウトのみ）","追加デザートA（みかんｾﾞﾘｰ）","追加デザートB（ﾌﾟﾘﾝ）","追加デザートC（ｼｮｺﾗﾑｰｽ）","追加デザートD（和菓子）"]
[null,"夕食","一般団体・企業夕食",null,"日替定食","幼児Ａ（ﾊﾔｼﾗｲｽ）","幼児A一般量（ﾊﾔｼﾗｲｽ）","幼児Ｂ（唐揚げ）","幼児B一般量（唐揚げ）","幼児Ｃ（ﾁｷﾝﾗｲｽ）","幼児C一般量（ﾁｷﾝﾗｲｽ）","団体Ａ（ﾐｯｸｽｸﾞﾘﾙ）","団体Ｂ（鶏のから揚げ）","団体Ｃ（豚肉の味噌焼き重）","わくわく御膳","追加デザートA（みかんｾﾞﾘｰ）","追加デザートB（ﾌﾟﾘﾝ）","追加デザートC（ｼｮｺﾗﾑｰｽ）","追加デザートD（和菓子）"]
[]
[null,"一般・2名から9名"]
[null,"朝食",{"$f":"B16&B17","v":"一般・2名から9名朝食"},null,"バイキング（小学生以上）","幼児バイキング（年少～年長）"]
[null,"昼食",{"$f":"$B$16&B18","v":"一般・2名から9名昼食"},null,"日替定食","幼児Ａ（ﾊﾝﾊﾞｰｸﾞｶﾚｰ）","幼児A大人量（ﾊﾝﾊﾞｰｸﾞｶﾚｰ）","幼児Ｂ（ﾁｬｰﾊﾝ）","幼児B大人量（ﾁｬｰﾊﾝ）","幼児Ｃ（ﾐｰﾄｿｰｽﾊﾟｽﾀ）","幼児C大人量（ﾐｰﾄｿｰｽﾊﾟｽﾀ）","追加デザートA（みかんｾﾞﾘｰ）","追加デザートB（ﾌﾟﾘﾝ）","追加デザートC（ｼｮｺﾗﾑｰｽ）","追加デザートD（和菓子）"]
[null,"夕食","一般・2名から9名夕食",null,"夕食　日替定食","幼児Ａ（ﾊﾔｼﾗｲｽ）","幼児A一般量（ﾊﾔｼﾗｲｽ）","幼児Ｂ（唐揚げ）","幼児B一般量（唐揚げ）","幼児Ｃ（ﾁｷﾝﾗｲｽ）","幼児C一般量（ﾁｷﾝﾗｲｽ）","わくわく御膳","追加デザートA（みかんｾﾞﾘｰ）","追加デザートB（ﾌﾟﾘﾝ）","追加デザートC（ｼｮｺﾗﾑｰｽ）","追加デザートD（和菓子）"]
[]
[null,"一般・1名"]
[null,"朝食",{"$f":"B$21&B22","v":"一般・1名朝食"},null,"バイキング（小学生以上）","幼児バイキング（年少～年長）"]
[null,"昼食",{"$f":"B$21&B23","v":"一般・1名昼食"},null,"日替定食","幼児Ａ（ﾊﾝﾊﾞｰｸﾞｶﾚｰ）","幼児A大人量（ﾊﾝﾊﾞｰｸﾞｶﾚｰ）","幼児Ｂ（ﾁｬｰﾊﾝ）","幼児B大人量（ﾁｬｰﾊﾝ）","幼児Ｃ（ﾐｰﾄｿｰｽﾊﾟｽﾀ）","幼児C大人量（ﾐｰﾄｿｰｽﾊﾟｽﾀ）","追加デザートA（みかんｾﾞﾘｰ）","追加デザートB（ﾌﾟﾘﾝ）","追加デザートC（ｼｮｺﾗﾑｰｽ）","追加デザートD（和菓子）"]
[null,"夕食","一般・1名夕食",null,"夕食　日替定食","幼児Ａ（ﾊﾔｼﾗｲｽ）","幼児A一般量（ﾊﾔｼﾗｲｽ）","幼児Ｂ（唐揚げ）","幼児B一般量（唐揚げ）","幼児Ｃ（ﾁｷﾝﾗｲｽ）","幼児C一般量（ﾁｷﾝﾗｲｽ）","わくわく御膳","追加デザートA（みかんｾﾞﾘｰ）","追加デザートB（ﾌﾟﾘﾝ）","追加デザートC（ｼｮｺﾗﾑｰｽ）","追加デザートD（和菓子）"]